[Event "Late-Titled-Tuesday-Blitz-February-06-2024"]
[Site "Chess.com"]
[Date "2024.02.06"]
[Round "9"]
[White "giomar27"]
[Black "ansko1999"]
[Result "0-1"]
[WhiteElo "2458"]
[BlackElo "2693"]
[TimeControl "180+1"]
[EndTime "15:43:54 PST"]
[Termination "ansko1999 won by resignation"]

1. Nc3 {[%clk 0:03:00.9]} 1... e5 {[%clk 0:02:53.5]} 2. Nf3 {[%clk 0:03:00.8]}
2... Nc6 {[%clk 0:02:51.8]} 3. d4 {[%clk 0:03:01.3]} 3... exd4 {[%clk 0:02:50]}
4. Nxd4 {[%clk 0:03:02.2]} 4... Bc5 {[%clk 0:02:46.3]} 5. Be3 {[%clk 0:02:56.9]}
5... Bxd4 {[%clk 0:02:29.2]} 6. Bxd4 {[%clk 0:02:56.8]} 6... Nxd4 {[%clk
0:02:30.1]} 7. Qxd4 {[%clk 0:02:57.2]} 7... Nf6 {[%clk 0:02:30]} 8. e4 {[%clk
0:02:57.2]} 8... d6 {[%clk 0:02:27.3]} 9. O-O-O {[%clk 0:02:55.8]} 9... Be6
{[%clk 0:02:21.4]} 10. f4 {[%clk 0:02:52.2]} 10... Qe7 {[%clk 0:02:15.8]} 11. e5
{[%clk 0:02:49.2]} 11... dxe5 {[%clk 0:02:14]} 12. fxe5 {[%clk 0:02:48.5]} 12...
Nd7 {[%clk 0:02:12.8]} 13. Bd3 {[%clk 0:02:48.2]} 13... Qg5+ {[%clk 0:02:03.9]}
14. Kb1 {[%clk 0:02:45.7]} 14... Qxe5 {[%clk 0:02:03.6]} 15. Qa4 {[%clk
0:02:29.4]} 15... O-O {[%clk 0:01:51]} 16. Rhe1 {[%clk 0:02:28.6]} 16... Qf6
{[%clk 0:01:37.6]} 17. Ne4 {[%clk 0:02:28.2]} 17... Qh6 {[%clk 0:01:37.5]} 18.
h4 {[%clk 0:02:26.9]} 18... Nb6 {[%clk 0:01:34]} 19. Qa5 {[%clk 0:02:05.9]}
19... Bg4 {[%clk 0:01:22.4]} 20. Rc1 {[%clk 0:01:59.3]} 20... Qh5 {[%clk
0:01:16.9]} 21. Ng5 {[%clk 0:01:51.9]} 21... h6 {[%clk 0:01:14.1]} 22. Bh7+
{[%clk 0:01:48.8]} 22... Kh8 {[%clk 0:01:14.2]} 23. Rh1 {[%clk 0:01:38.3]} 23...
f6 {[%clk 0:01:08.4]} 24. Qc3 {[%clk 0:01:21.9]} 24... fxg5 {[%clk 0:01:04.2]}
25. hxg5 {[%clk 0:01:21.9]} 25... Qxg5 {[%clk 0:01:04.8]} 26. Bd3 {[%clk
0:01:21.8]} 26... Nd5 {[%clk 0:00:58.6]} 27. Qd4 {[%clk 0:01:21.5]} 27... Nf4
{[%clk 0:00:52.2]} 28. Bc4 {[%clk 0:01:20.7]} 28... Rad8 {[%clk 0:00:51.4]} 29.
Qc3 {[%clk 0:01:20.6]} 29... Qf6 {[%clk 0:00:42.9]} 30. Qg3 {[%clk 0:01:18.3]}
30... Be2 {[%clk 0:00:40.1]} 31. Bb3 {[%clk 0:01:16.6]} 31... c5 {[%clk
0:00:38.1]} 32. Ba4 {[%clk 0:01:10.9]} 32... b5 {[%clk 0:00:37.2]} 33. Bb3
{[%clk 0:01:10.6]} 33... c4 {[%clk 0:00:37.5]} 34. Rh4 {[%clk 0:01:08]} 34...
Nh5 {[%clk 0:00:24.9]} 35. Qh2 {[%clk 0:01:05.3]} 35... cxb3 {[%clk 0:00:22.2]}
36. cxb3 {[%clk 0:01:05.6]} 36... Bd3+ {[%clk 0:00:20.7]} 37. Ka1 {[%clk
0:01:05.6]} 37... Nf4 {[%clk 0:00:17.4]} 38. Rh1 {[%clk 0:01:04.5]} 38... Kg8
{[%clk 0:00:17.2]} 39. Qg3 {[%clk 0:01:04.4]} 39... Ng6 {[%clk 0:00:16.6]} 40.
Rg4 {[%clk 0:01:02.4]} 40... Bf5 {[%clk 0:00:16.8]} 41. Rb4 {[%clk 0:01:01.4]}
41... Rd3 {[%clk 0:00:16.9]} 42. Qc7 {[%clk 0:01:00.7]} 42... Qd6 {[%clk
0:00:16.5]} 43. Qc1 {[%clk 0:01:00.2]} 43... Rc8 {[%clk 0:00:16.2]} 44. Qf1
{[%clk 0:00:58.9]} 44... Qxb4 {[%clk 0:00:15]} 45. Qf4 {[%clk 0:00:58.2]} 45...
Qxf4 {[%clk 0:00:15.1]} 0-1

[Event "Late-Titled-Tuesday-Blitz-February-06-2024"]
[Site "Chess.com"]
[Date "2024.02.06"]
[Round "9"]
[White "Szparu"]
[Black "lachesisQ"]
[Result "1-0"]
[WhiteElo "2823"]
[BlackElo "3043"]
[TimeControl "180+1"]
[EndTime "15:43:55 PST"]
[Termination "Szparu won by resignation"]

1. e4 {[%clk 0:03:00.9]} 1... c6 {[%clk 0:02:59.9]} 2. d4 {[%clk 0:02:59.7]}
2... d5 {[%clk 0:03:00.8]} 3. e5 {[%clk 0:03:00.3]} 3... c5 {[%clk 0:03:00.6]}
4. dxc5 {[%clk 0:03:00.4]} 4... e6 {[%clk 0:03:00.8]} 5. a3 {[%clk 0:02:59.2]}
5... Bxc5 {[%clk 0:03:00.1]} 6. Qg4 {[%clk 0:02:59.4]} 6... Ne7 {[%clk
0:02:51.5]} 7. b4 {[%clk 0:02:59.1]} 7... Bb6 {[%clk 0:02:50.6]} 8. Nf3 {[%clk
0:02:57.6]} 8... O-O {[%clk 0:02:39.1]} 9. Bb2 {[%clk 0:02:54.7]} 9... Nbc6
{[%clk 0:02:37.5]} 10. Bd3 {[%clk 0:02:54.3]} 10... Ng6 {[%clk 0:02:35.5]} 11.
Nbd2 {[%clk 0:02:33.5]} 11... f5 {[%clk 0:02:31]} 12. Qg3 {[%clk 0:02:30]} 12...
Bd7 {[%clk 0:02:21.4]} 13. h4 {[%clk 0:02:27.5]} 13... Bc7 {[%clk 0:01:53.8]}
14. b5 {[%clk 0:02:11.2]} 14... f4 {[%clk 0:01:42.9]} 15. Qg4 {[%clk 0:01:42.8]}
15... Ncxe5 {[%clk 0:01:42.9]} 16. Bxe5 {[%clk 0:01:20.9]} 16... Nxe5 {[%clk
0:01:42.1]} 17. Nxe5 {[%clk 0:01:16.6]} 17... Bxe5 {[%clk 0:01:43]} 18. Qh5
{[%clk 0:01:12.6]} 18... Rf5 {[%clk 0:01:42.8]} 19. Bxf5 {[%clk 0:01:12.2]}
19... exf5 {[%clk 0:01:43.3]} 20. Rb1 {[%clk 0:01:10.1]} 20... Qa5 {[%clk
0:01:29.7]} 21. Qe2 {[%clk 0:01:00.7]} 21... Bc3 {[%clk 0:01:29.5]} 22. Qd3
{[%clk 0:00:59.1]} 22... Kh8 {[%clk 0:01:14.7]} 23. Kd1 {[%clk 0:00:58.3]} 23...
d4 {[%clk 0:01:09.1]} 24. Re1 {[%clk 0:00:56.7]} 24... Qxa3 {[%clk 0:01:03.7]}
25. Qc4 {[%clk 0:00:51]} 25... h6 {[%clk 0:00:56.1]} 26. Qf7 {[%clk 0:00:48.1]}
26... Bxd2 {[%clk 0:00:43]} 27. Re7 {[%clk 0:00:40.4]} 27... Rg8 {[%clk
0:00:42.2]} 28. Kxd2 {[%clk 0:00:20.8]} 28... Qc3+ {[%clk 0:00:41.5]} 29. Kd1
{[%clk 0:00:21.4]} 29... d3 {[%clk 0:00:37]} 30. Qb3 {[%clk 0:00:21.9]} 30...
dxc2+ {[%clk 0:00:31.6]} 31. Qxc2 {[%clk 0:00:22.8]} 31... Qc4 {[%clk 0:00:31]}
32. Qxc4 {[%clk 0:00:22.6]} 1-0

[Event "Late-Titled-Tuesday-Blitz-February-06-2024"]
[Site "Chess.com"]
[Date "2024.02.06"]
[Round "9"]
[White "malakismayil"]
[Black "Mikasinski"]
[Result "1-0"]
[WhiteElo "2490"]
[BlackElo "2581"]
[TimeControl "180+1"]
[EndTime "15:43:55 PST"]
[Termination "malakismayil won by checkmate"]

1. e4 {[%clk 0:03:00.9]} 1... c5 {[%clk 0:02:59.5]} 2. Nf3 {[%clk 0:02:55.8]}
2... d6 {[%clk 0:02:59.8]} 3. Bb5+ {[%clk 0:02:55.7]} 3... Bd7 {[%clk
0:02:59.5]} 4. Bxd7+ {[%clk 0:02:55.6]} 4... Qxd7 {[%clk 0:03:00.4]} 5. O-O
{[%clk 0:02:56.3]} 5... Nc6 {[%clk 0:03:00.4]} 6. d4 {[%clk 0:02:56.5]} 6...
cxd4 {[%clk 0:03:00]} 7. Nxd4 {[%clk 0:02:57.4]} 7... Nf6 {[%clk 0:03:00.5]} 8.
Re1 {[%clk 0:02:57.3]} 8... g6 {[%clk 0:02:59.4]} 9. c4 {[%clk 0:02:57.5]} 9...
Bg7 {[%clk 0:02:59.2]} 10. Nc3 {[%clk 0:02:58.1]} 10... Nxd4 {[%clk 0:02:58.7]}
11. Qxd4 {[%clk 0:02:56.8]} 11... O-O {[%clk 0:02:59.6]} 12. Bg5 {[%clk
0:02:46.7]} 12... Rac8 {[%clk 0:02:59.1]} 13. Rac1 {[%clk 0:02:33.7]} 13... Rfe8
{[%clk 0:02:57.8]} 14. Qd3 {[%clk 0:02:23]} 14... Qg4 {[%clk 0:02:48.7]} 15.
Bxf6 {[%clk 0:02:19.3]} 15... Bxf6 {[%clk 0:02:47.6]} 16. b3 {[%clk 0:02:19.7]}
16... Bg7 {[%clk 0:02:45.5]} 17. h3 {[%clk 0:02:18.4]} 17... Qe6 {[%clk
0:02:44.2]} 18. Nd5 {[%clk 0:02:18.5]} 18... h5 {[%clk 0:02:40.2]} 19. f4 {[%clk
0:02:17.9]} 19... Qd7 {[%clk 0:02:35]} 20. f5 {[%clk 0:02:09.1]} 20... e6 {[%clk
0:02:25]} 21. fxe6 {[%clk 0:01:52.1]} 21... fxe6 {[%clk 0:02:24.7]} 22. Nf4
{[%clk 0:01:51.8]} 22... Bh6 {[%clk 0:01:53.5]} 23. Qg3 {[%clk 0:01:42.7]} 23...
Qg7 {[%clk 0:01:42.6]} 24. Rcd1 {[%clk 0:01:39.5]} 24... Bxf4 {[%clk 0:01:27.8]}
25. Qxf4 {[%clk 0:01:40.4]} 25... e5 {[%clk 0:01:27]} 26. Qe3 {[%clk 0:01:37.1]}
26... Rc6 {[%clk 0:01:21.5]} 27. Qxa7 {[%clk 0:01:35.3]} 27... Ra6 {[%clk
0:01:21.3]} 28. Qf2 {[%clk 0:01:35.2]} 28... Rf8 {[%clk 0:01:20.9]} 29. Qe2
{[%clk 0:01:33.1]} 29... Qc7 {[%clk 0:01:18.2]} 30. Rd2 {[%clk 0:01:30.2]} 30...
Rf4 {[%clk 0:01:11.4]} 31. Rf1 {[%clk 0:01:23.6]} 31... Qc5+ {[%clk 0:01:01.1]}
32. Kh2 {[%clk 0:01:05.7]} 32... Rc6 {[%clk 0:00:47.5]} 33. Rxf4 {[%clk
0:01:03.5]} 33... exf4 {[%clk 0:00:47.6]} 34. Rd5 {[%clk 0:00:53.6]} 34... Qb6
{[%clk 0:00:44.6]} 35. Qd2 {[%clk 0:00:51.7]} 35... Qa6 {[%clk 0:00:34.3]} 36.
Qxf4 {[%clk 0:00:43.9]} 36... Qxa2 {[%clk 0:00:33.7]} 37. Qf6 {[%clk 0:00:40.9]}
37... Qxb3 {[%clk 0:00:27.3]} 38. Qxg6+ {[%clk 0:00:38.5]} 38... Kf8 {[%clk
0:00:27.9]} 39. Rf5+ {[%clk 0:00:36.3]} 39... Ke7 {[%clk 0:00:28.8]} 40. Rf7+
{[%clk 0:00:35.9]} 40... Kd8 {[%clk 0:00:29.5]} 41. Qg8# {[%clk 0:00:36.4]} 1-0

[Event "Late-Titled-Tuesday-Blitz-February-06-2024"]
[Site "Chess.com"]
[Date "2024.02.06"]
[Round "9"]
[White "YurasovMat-2012"]
[Black "kuli4ik"]
[Result "0-1"]
[WhiteElo "2695"]
[BlackElo "2865"]
[TimeControl "180+1"]
[EndTime "15:43:56 PST"]
[Termination "kuli4ik won by resignation"]

1. e4 {[%clk 0:03:00.9]} 1... g6 {[%clk 0:02:57.4]} 2. Nf3 {[%clk 0:03:00.2]}
2... Bg7 {[%clk 0:02:57.7]} 3. d4 {[%clk 0:02:59.7]} 3... d6 {[%clk 0:02:58]} 4.
Nc3 {[%clk 0:02:59.4]} 4... a6 {[%clk 0:02:58]} 5. Bd3 {[%clk 0:02:56.8]} 5...
b5 {[%clk 0:02:57.5]} 6. Be3 {[%clk 0:02:55.3]} 6... Bb7 {[%clk 0:02:57.7]} 7.
a3 {[%clk 0:02:52.8]} 7... Nd7 {[%clk 0:02:57.8]} 8. O-O {[%clk 0:02:51.5]} 8...
c5 {[%clk 0:02:56.7]} 9. dxc5 {[%clk 0:02:30.1]} 9... Nxc5 {[%clk 0:02:56]} 10.
Qe2 {[%clk 0:02:25.5]} 10... Nxd3 {[%clk 0:02:49.6]} 11. cxd3 {[%clk 0:02:25.3]}
11... Nf6 {[%clk 0:02:49.1]} 12. h3 {[%clk 0:02:23.6]} 12... O-O {[%clk
0:02:49.1]} 13. Rac1 {[%clk 0:02:23.5]} 13... Qd7 {[%clk 0:02:45.2]} 14. Rfd1
{[%clk 0:02:22.9]} 14... Rfc8 {[%clk 0:02:44.9]} 15. Nd2 {[%clk 0:02:19]} 15...
Qe6 {[%clk 0:02:26.4]} 16. Nf3 {[%clk 0:02:14.1]} 16... Qd7 {[%clk 0:02:12.4]}
17. Qd2 {[%clk 0:02:08.3]} 17... a5 {[%clk 0:02:01.4]} 18. Bh6 {[%clk
0:02:03.8]} 18... Bh8 {[%clk 0:02:00.2]} 19. Be3 {[%clk 0:01:57.3]} 19... b4
{[%clk 0:01:54.9]} 20. Ne2 {[%clk 0:01:56.2]} 20... Qa4 {[%clk 0:01:43.1]} 21.
axb4 {[%clk 0:01:52.3]} 21... Qxb4 {[%clk 0:01:43]} 22. Qxb4 {[%clk 0:01:46.5]}
22... axb4 {[%clk 0:01:43.9]} 23. Ra1 {[%clk 0:01:43.6]} 23... Nd7 {[%clk
0:01:31.7]} 24. Bd4 {[%clk 0:01:41.1]} 24... Nc5 {[%clk 0:01:25.1]} 25. Bxh8
{[%clk 0:01:36.5]} 25... Kxh8 {[%clk 0:01:24.9]} 26. Rxa8 {[%clk 0:01:35.3]}
26... Rxa8 {[%clk 0:01:24.3]} 27. Ned4 {[%clk 0:01:33.6]} 27... Ra2 {[%clk
0:01:18.6]} 28. Rd2 {[%clk 0:01:33.5]} 28... Kg7 {[%clk 0:01:00.8]} 29. g3
{[%clk 0:01:31.3]} 29... Kf8 {[%clk 0:00:55.9]} 30. h4 {[%clk 0:01:30.2]} 30...
e5 {[%clk 0:00:55.5]} 31. Nb5 {[%clk 0:01:24.3]} 31... Ke7 {[%clk 0:00:50]} 32.
Ne1 {[%clk 0:01:22.3]} 32... Na4 {[%clk 0:00:39.9]} 33. Rc2 {[%clk 0:01:14.2]}
33... Ba6 {[%clk 0:00:33.1]} 34. Nc7 {[%clk 0:01:12.1]} 34... Bb7 {[%clk
0:00:31.3]} 35. Nb5 {[%clk 0:00:59.2]} 35... Nc5 {[%clk 0:00:31]} 36. Kf1 {[%clk
0:00:55]} 36... Ra1 {[%clk 0:00:29.3]} 37. Ke2 {[%clk 0:00:54.2]} 37... Rb1
{[%clk 0:00:26.1]} 38. Nc7 {[%clk 0:00:49.9]} 38... Kd7 {[%clk 0:00:25.1]} 39.
Nd5 {[%clk 0:00:47.7]} 39... Bxd5 {[%clk 0:00:25.2]} 40. exd5 {[%clk 0:00:48.6]}
40... Na4 {[%clk 0:00:25.3]} 0-1

[Event "Late-Titled-Tuesday-Blitz-February-06-2024"]
[Site "Chess.com"]
[Date "2024.02.06"]
[Round "9"]
[White "LionTheLeon_06"]
[Black "GHANDEEVAM2003"]
[Result "0-1"]
[WhiteElo "2881"]
[BlackElo "3042"]
[TimeControl "180+1"]
[EndTime "15:43:57 PST"]
[Termination "GHANDEEVAM2003 won by resignation"]

1. c3 {[%clk 0:03:00.9]} 1... d6 {[%clk 0:03:00.9]} 2. d4 {[%clk 0:03:00.4]}
2... g6 {[%clk 0:03:01.8]} 3. Nf3 {[%clk 0:02:59.8]} 3... Nf6 {[%clk 0:03:02.7]}
4. Bf4 {[%clk 0:03:00.3]} 4... Bg7 {[%clk 0:03:03.2]} 5. h3 {[%clk 0:03:01]}
5... O-O {[%clk 0:03:04.1]} 6. e3 {[%clk 0:03:01.7]} 6... Nc6 {[%clk 0:03:05]}
7. Bh2 {[%clk 0:03:02.2]} 7... Qe8 {[%clk 0:03:05.7]} 8. Be2 {[%clk 0:03:02.9]}
8... e5 {[%clk 0:03:06.4]} 9. O-O {[%clk 0:03:03.6]} 9... Qe7 {[%clk 0:03:06.9]}
10. a4 {[%clk 0:03:03.9]} 10... Rd8 {[%clk 0:03:07.1]} 11. a5 {[%clk 0:03:04]}
11... a6 {[%clk 0:03:07.1]} 12. Nbd2 {[%clk 0:03:02.2]} 12... h5 {[%clk
0:03:07.5]} 13. b4 {[%clk 0:03:02.5]} 13... e4 {[%clk 0:03:07.6]} 14. Ne1 {[%clk
0:03:02.6]} 14... h4 {[%clk 0:03:06.2]} 15. Nc2 {[%clk 0:03:02.6]} 15... Nd5
{[%clk 0:03:06]} 16. Ra3 {[%clk 0:03:00.2]} 16... f5 {[%clk 0:03:06.5]} 17. Qb1
{[%clk 0:02:45.8]} 17... Kh7 {[%clk 0:03:03.5]} 18. c4 {[%clk 0:02:45.7]} 18...
Nf6 {[%clk 0:03:03.7]} 19. Qa2 {[%clk 0:02:35.6]} 19... g5 {[%clk 0:02:53.7]}
20. b5 {[%clk 0:02:35.8]} 20... Nb8 {[%clk 0:02:49.8]} 21. Nb4 {[%clk
0:02:32.2]} 21... Be6 {[%clk 0:02:45.4]} 22. Qc2 {[%clk 0:02:21.5]} 22... c5
{[%clk 0:02:28.6]} 23. bxc6 {[%clk 0:02:18.7]} 23... bxc6 {[%clk 0:02:29.5]} 24.
c5 {[%clk 0:02:05.6]} 24... dxc5 {[%clk 0:02:19]} 25. dxc5 {[%clk 0:02:06.5]}
25... Nd5 {[%clk 0:02:15.7]} 26. Bd6 {[%clk 0:02:01.7]} 26... Nxb4 {[%clk
0:02:13.5]} 27. Qa4 {[%clk 0:01:54.8]} 27... Rxd6 {[%clk 0:02:11.5]} 28. cxd6
{[%clk 0:01:54.4]} 28... Qxd6 {[%clk 0:02:12.4]} 29. Nc4 {[%clk 0:01:54.5]}
29... Bxc4 {[%clk 0:02:09.5]} 30. Bxc4 {[%clk 0:01:55.4]} 30... Nd7 {[%clk
0:02:08.2]} 31. Rd1 {[%clk 0:01:55]} 31... Nd5 {[%clk 0:02:08.9]} 32. Ra2 {[%clk
0:01:43.3]} 32... Ne5 {[%clk 0:01:59.2]} 33. Bf1 {[%clk 0:01:31.9]} 33... Qb4
{[%clk 0:01:51.8]} 34. Qc2 {[%clk 0:01:01.5]} 34... Qc3 {[%clk 0:01:51]} 35. Rb1
{[%clk 0:00:56.9]} 35... Nd3 {[%clk 0:01:43.7]} 36. Rb7 {[%clk 0:00:53.2]} 36...
Qxc2 {[%clk 0:01:36.8]} 37. Rxc2 {[%clk 0:00:54.1]} 37... c5 {[%clk 0:01:37]}
38. Rd7 {[%clk 0:00:45.5]} 38... N5b4 {[%clk 0:01:37.2]} 39. Rc4 {[%clk
0:00:44.5]} 39... Ne5 {[%clk 0:01:37.3]} 40. Rxg7+ {[%clk 0:00:42.4]} 40... Kxg7
{[%clk 0:01:38.2]} 41. Rxc5 {[%clk 0:00:43.3]} 41... Kf6 {[%clk 0:01:36.9]} 42.
Rc7 {[%clk 0:00:40]} 42... Re8 {[%clk 0:01:28.1]} 43. Rb7 {[%clk 0:00:39.4]}
43... Nbd3 {[%clk 0:01:28.2]} 44. Be2 {[%clk 0:00:38.8]} 44... Re6 {[%clk
0:01:26.5]} 45. f3 {[%clk 0:00:38.4]} 45... Rc6 {[%clk 0:01:23.8]} 46. Rb6
{[%clk 0:00:33.5]} 46... Ke6 {[%clk 0:01:17.5]} 47. fxe4 {[%clk 0:00:31.4]}
47... fxe4 {[%clk 0:01:17.5]} 48. Rb1 {[%clk 0:00:28.9]} 48... Kd5 {[%clk
0:01:14.6]} 49. Bf1 {[%clk 0:00:24.3]} 49... g4 {[%clk 0:01:12.3]} 50. hxg4
{[%clk 0:00:24]} 50... Nxg4 {[%clk 0:01:13.2]} 0-1

[Event "Late-Titled-Tuesday-Blitz-February-06-2024"]
[Site "Chess.com"]
[Date "2024.02.06"]
[Round "9"]
[White "balachess2006"]
[Black "OneTrickPony_82"]
[Result "0-1"]
[WhiteElo "2697"]
[BlackElo "2554"]
[TimeControl "180+1"]
[EndTime "15:43:57 PST"]
[Termination "OneTrickPony_82 won by checkmate"]

1. c4 {[%clk 0:02:54]} 1... Nf6 {[%clk 0:02:59.1]} 2. Nf3 {[%clk 0:02:53.5]}
2... c5 {[%clk 0:02:58.1]} 3. Nc3 {[%clk 0:02:49.4]} 3... e6 {[%clk 0:02:57.1]}
4. e3 {[%clk 0:02:49.1]} 4... d5 {[%clk 0:02:56.8]} 5. cxd5 {[%clk 0:02:48.9]}
5... exd5 {[%clk 0:02:56.1]} 6. d4 {[%clk 0:02:48.8]} 6... a6 {[%clk 0:02:47.6]}
7. dxc5 {[%clk 0:02:43.4]} 7... Bxc5 {[%clk 0:02:47]} 8. Be2 {[%clk 0:02:43.9]}
8... Nc6 {[%clk 0:02:46.2]} 9. O-O {[%clk 0:02:43.1]} 9... O-O {[%clk
0:02:46.1]} 10. b3 {[%clk 0:02:40.6]} 10... Bf5 {[%clk 0:02:26.8]} 11. Bb2
{[%clk 0:02:40.3]} 11... d4 {[%clk 0:02:27.1]} 12. Na4 {[%clk 0:02:40.3]} 12...
Ba7 {[%clk 0:02:26.9]} 13. Nxd4 {[%clk 0:02:40.2]} 13... Nxd4 {[%clk 0:02:19.5]}
14. Bxd4 {[%clk 0:02:39.9]} 14... Bxd4 {[%clk 0:02:17.7]} 15. Qxd4 {[%clk
0:02:40.8]} 15... Qxd4 {[%clk 0:02:17.3]} 16. exd4 {[%clk 0:02:39]} 16... Rad8
{[%clk 0:02:17.4]} 17. Rad1 {[%clk 0:02:35.9]} 17... Nd5 {[%clk 0:02:08.4]} 18.
Bf3 {[%clk 0:02:33.5]} 18... b5 {[%clk 0:02:02.1]} 19. Nc5 {[%clk 0:02:33.3]}
19... Nc3 {[%clk 0:01:52.2]} 20. Rd2 {[%clk 0:02:32.9]} 20... Rd6 {[%clk
0:01:39.2]} 21. Rc1 {[%clk 0:02:27.7]} 21... b4 {[%clk 0:01:37.2]} 22. a3 {[%clk
0:02:24.4]} 22... a5 {[%clk 0:01:36.2]} 23. axb4 {[%clk 0:02:24.6]} 23... axb4
{[%clk 0:01:36.2]} 24. g3 {[%clk 0:02:20.2]} 24... Rfd8 {[%clk 0:01:31.8]} 25.
d5 {[%clk 0:02:13.4]} 25... Rc8 {[%clk 0:01:25.9]} 26. Nb7 {[%clk 0:02:04.4]}
26... Rd7 {[%clk 0:01:19.1]} 27. d6 {[%clk 0:01:57.4]} 27... Ne2+ {[%clk
0:01:17]} 28. Rxe2 {[%clk 0:01:56.3]} 28... Rxc1+ {[%clk 0:01:17]} 29. Kg2
{[%clk 0:01:56.8]} 29... Kf8 {[%clk 0:01:01.4]} 30. Rd2 {[%clk 0:01:32.6]} 30...
Rc3 {[%clk 0:00:54]} 31. Rd4 {[%clk 0:01:27.9]} 31... Rxf3 {[%clk 0:00:50.1]}
32. Nc5 {[%clk 0:01:27.6]} 32... Rc3 {[%clk 0:00:43.1]} 33. Nxd7+ {[%clk
0:01:27.9]} 33... Bxd7 {[%clk 0:00:43]} 34. Rxb4 {[%clk 0:01:28.8]} 34... Ke8
{[%clk 0:00:31.5]} 35. Rb8+ {[%clk 0:01:12.1]} 35... Rc8 {[%clk 0:00:30.4]} 36.
Rb4 {[%clk 0:01:04.5]} 36... Bc6+ {[%clk 0:00:27]} 37. Kh3 {[%clk 0:01:05]}
37... Kd7 {[%clk 0:00:26.2]} 38. Rd4 {[%clk 0:01:04.8]} 38... Rb8 {[%clk
0:00:22.9]} 39. b4 {[%clk 0:01:05.1]} 39... Rb5 {[%clk 0:00:22.8]} 40. g4 {[%clk
0:01:04.6]} 40... Rd5 {[%clk 0:00:21.7]} 41. Rf4 {[%clk 0:01:01.7]} 41... f6
{[%clk 0:00:18.7]} 42. Rc4 {[%clk 0:00:58.2]} 42... Rd3+ {[%clk 0:00:17.1]} 43.
f3 {[%clk 0:00:54.4]} 43... Rxf3+ {[%clk 0:00:16.6]} 44. Kh4 {[%clk 0:00:55]}
44... g5+ {[%clk 0:00:16.1]} 45. Kh5 {[%clk 0:00:55.6]} 45... Rh3# {[%clk
0:00:16.5]} 0-1

[Event "Late-Titled-Tuesday-Blitz-February-06-2024"]
[Site "Chess.com"]
[Date "2024.02.06"]
[Round "9"]
[White "masterofpuppets2"]
[Black "Chessdude1987"]
[Result "0-1"]
[WhiteElo "2479"]
[BlackElo "2319"]
[TimeControl "180+1"]
[EndTime "15:44:00 PST"]
[Termination "Chessdude1987 won by checkmate"]

1. e4 {[%clk 0:02:57.3]} 1... e6 {[%clk 0:03:00.6]} 2. d4 {[%clk 0:02:56.7]}
2... d5 {[%clk 0:03:01.2]} 3. Nd2 {[%clk 0:02:53.6]} 3... c5 {[%clk 0:03:00.8]}
4. exd5 {[%clk 0:02:51.4]} 4... Qxd5 {[%clk 0:03:00.6]} 5. dxc5 {[%clk
0:02:40.9]} 5... Nf6 {[%clk 0:02:59.2]} 6. Ngf3 {[%clk 0:02:41.6]} 6... Qxc5
{[%clk 0:02:50]} 7. Bd3 {[%clk 0:02:38.5]} 7... Be7 {[%clk 0:02:48.6]} 8. O-O
{[%clk 0:02:38.6]} 8... O-O {[%clk 0:02:48.3]} 9. Qe2 {[%clk 0:02:36.7]} 9...
Nbd7 {[%clk 0:02:47.9]} 10. Nb3 {[%clk 0:02:22.5]} 10... Qc7 {[%clk 0:02:47.6]}
11. Bg5 {[%clk 0:02:20.7]} 11... b6 {[%clk 0:02:34.5]} 12. Rad1 {[%clk
0:02:16.3]} 12... Bb7 {[%clk 0:02:34.1]} 13. c3 {[%clk 0:02:13.1]} 13... Rad8
{[%clk 0:02:26.1]} 14. Bb1 {[%clk 0:02:04.1]} 14... Rfe8 {[%clk 0:02:25.7]} 15.
Nbd4 {[%clk 0:01:59.2]} 15... Nd5 {[%clk 0:02:21.7]} 16. Bxe7 {[%clk 0:01:08]}
16... Rxe7 {[%clk 0:02:16.7]} 17. Qe4 {[%clk 0:01:01.3]} 17... N7f6 {[%clk
0:02:14.6]} 18. Qh4 {[%clk 0:01:00.7]} 18... Nf4 {[%clk 0:02:01.3]} 19. Rfe1
{[%clk 0:00:57.4]} 19... Red7 {[%clk 0:01:56.1]} 20. Ne5 {[%clk 0:00:55.3]}
20... Ng6 {[%clk 0:01:37]} 21. Bxg6 {[%clk 0:00:51.8]} 21... hxg6 {[%clk
0:01:34.6]} 22. Nxd7 {[%clk 0:00:50]} 22... Rxd7 {[%clk 0:01:34.8]} 23. Qg3
{[%clk 0:00:45]} 23... Qd8 {[%clk 0:01:32.3]} 24. Rc1 {[%clk 0:00:27.5]} 24...
Nh5 {[%clk 0:01:25.2]} 25. Qe5 {[%clk 0:00:27.3]} 25... Bd5 {[%clk 0:01:22.7]}
26. b3 {[%clk 0:00:21.9]} 26... f6 {[%clk 0:01:22.6]} 27. Qe3 {[%clk 0:00:20]}
27... e5 {[%clk 0:01:22.7]} 28. Nf3 {[%clk 0:00:19]} 28... Nf4 {[%clk
0:01:22.4]} 29. Rcd1 {[%clk 0:00:16.3]} 29... Bb7 {[%clk 0:01:02.9]} 30. Rxd7
{[%clk 0:00:15.6]} 30... Qxd7 {[%clk 0:01:02.9]} 31. Qd2 {[%clk 0:00:16]} 31...
Qc6 {[%clk 0:01:00.9]} 32. Qe3 {[%clk 0:00:14.9]} 32... g5 {[%clk 0:00:58.4]}
33. h3 {[%clk 0:00:14.9]} 33... Qd7 {[%clk 0:00:48.4]} 34. Kh2 {[%clk 0:00:12]}
34... g4 {[%clk 0:00:48.2]} 35. hxg4 {[%clk 0:00:11.7]} 35... Qxg4 {[%clk
0:00:47.7]} 36. g3 {[%clk 0:00:02.9]} 36... Qh3+ {[%clk 0:00:46.6]} 37. Kg1
{[%clk 0:00:02.6]} 37... Qg2# {[%clk 0:00:47.5]} 0-1